[Event "45th FIDE Womens Olympiad 2024"]
[Site "Budapest"]
[Date "2024.09.14"]
[Round "4.13"]
[White "Osmak, Yuliia"]
[Black "Atalik, Ekaterina"]
[Result "1/2-1/2"]
[ECO "A11"]
[WhiteElo "2471"]
[BlackElo "2381"]
[Annotator "ChessBase"]
[PlyCount "72"]
[EventDate "2024.09.05"]
[EventType "team-tourn"]
[EventCountry "HUN"]
[SourceTitle "playchess.com"]
[Source "ChessBase"]
[SourceQuality "1"]
[WhiteTeam "Ukraine"]
[BlackTeam "Turkiye"]
[WhiteTeamCountry "UKR"]
[TimeControl "40/5400+30:1800+30"]

1. c4 {[%emt 0:00:03]} c6 {[%emt 0:00:18]} 2. Nf3 {[%emt 0:00:19]} d5 {[%emt 0:00:22]} 3. g3 {[%emt 0:00:20]} Nf6 {[%emt 0:01:07]} 4. Bg2 {[%emt 0:00:08]} g6 {[%emt 0:00:30]} 5. b3 {[%emt 0:01:41]} Bg7 {[%emt 0:02:55]} 6. Bb2 {[%emt 0:00:07]} O-O {[%emt 0:00:08]} 7. O-O {[%emt 0:00:38]} Bg4 {[%emt 0:03:09]} 8. d3 {[%emt 0:06:39]} Nbd7 {[%emt 0:02:27]} 9. Nbd2 {[%emt 0:00:42]} Re8 {[%emt 0:01:17]} 10. Ne5 {[%emt 0:06:17]} Nxe5 {[%emt 0:03:10]} 11. Bxe5 {[%emt 0:00:22]} Qd7 {[%emt 0:01:31]} 12. Re1 {[%emt 0:06:01]} Nh5 {[%emt 0:11:34]} 13. Bxg7 {[%emt 0:01:53]} Kxg7 {[%emt 0:02:12]} 14. b4 {[%emt 0:05:55]} Nf6 {[%emt 0:04:02]} 15. Qc2 {[%emt 0:05:06]} e5 {[%emt 0:01:19]} 16. Qb2 {[%emt 0:00:45]} Rad8 {[%emt 0:04:49]} 17. Rac1 {[%emt 0:09:33]} h5 {[%emt 0:08:52]} 18. h4 {[%emt 0:03:50]} dxc4 {[%emt 0:08:54]} 19. Nxc4 {[%emt 0:01:50]} Qd4 {[%emt 0:02:41]} 20. Rc2 {[%emt 0:07:35]} Bf5 {[%emt 0:13:24]} 21. Na5 {[%emt 0:20:07]} Re7 {[%emt 0:01:26]} 22. a3 {[%emt 0:02:09]} e4 {[%emt 0:02:42]} 23. dxe4 {[%emt 0:02:30]} Nxe4 {[%emt 0:05:17]} 24. Qxd4+ {[%emt 0:10:47]} Rxd4 {[%emt 0:00:05]} 25. Rc4 {[%emt 0:00:10]} Rxc4 {[%emt 0:01:05]} 26. Nxc4 {[%emt 0:00:03]} Nc3 {[%emt 0:02:17]} 27. e3 {[%emt 0:00:49]} Rd7 {[%emt 0:01:03]} 28. Bf1 {[%emt 0:02:44]} Ne4 {[%emt 0:05:14]} 29. Be2 {[%emt 0:01:32]} c5 {[%emt 0:03:33]} 30. bxc5 {[%emt 0:02:21]} Nxc5 {[%emt 0:00:26]} 31. Rd1 {[%emt 0:00:43]} Rxd1+ {[%emt 0:01:27]} 32. Bxd1 {[%emt 0:00:02]} Be6 {[%emt 0:00:13]} 33. Be2 {[%emt 0:01:09]} Ne4 {[%emt 0:01:13]} 34. Bd3 {[%emt 0:01:56]} Nc5 {[%emt 0:00:42]} 35. Be2 {[%emt 0:00:05]} Ne4 {[%emt 0:02:12]} 36. Bd3 {[%emt 0:00:04]} Nc5 {[%emt 0:00:27]} 1/2-1/2

[Event "45th FIDE Womens Olympiad 2024"]
[Site "Budapest"]
[Date "2024.09.14"]
[Round "4.14"]
[White "Yildiz Kadioglu, Betul Cemre"]
[Black "Ushenina, Anna"]
[Result "1/2-1/2"]
[ECO "E11"]
[WhiteElo "2314"]
[BlackElo "2417"]
[Annotator "ChessBase"]
[PlyCount "33"]
[EventDate "2024.09.05"]
[EventType "team-tourn"]
[EventCountry "HUN"]
[SourceTitle "playchess.com"]
[Source "ChessBase"]
[SourceQuality "1"]
[WhiteTeam "Turkiye"]
[BlackTeam "Ukraine"]
[WhiteTeamCountry "TUR"]
[BlackTeamCountry "UKR"]
[TimeControl "40/5400+30:1800+30"]

1. d4 {[%emt 0:00:03]} d5 {[%emt 0:00:23]} 2. c4 {[%emt 0:00:06]} e6 {[%emt 0:00:45]} 3. Nf3 {[%emt 0:00:21]} Nf6 {[%emt 0:00:49]} 4. g3 {[%emt 0:00:24]} Bb4+ {[%emt 0:01:00]} 5. Bd2 {[%emt 0:00:22]} a5 {[%emt 0:00:27]} 6. Qc2 {[%emt 0:03:47]} O-O {[%emt 0:10:14]} 7. Bg2 {[%emt 0:00:18]} c5 {[%emt 0:00:32]} 8. dxc5 {[%emt 0:08:56]} d4 {[%emt 0:01:03]} 9. Bxb4 {[%emt 0:11:43]} axb4 {[%emt 0:00:29]} 10. O-O {[%emt 0:04:31]} Nc6 {[%emt 0:01:00]} 11. Nbd2 {[%emt 0:04:29]} e5 {[%emt 0:10:29]} 12. Rfd1 {[%emt 0:06:55]} Qe7 {[%emt 0:04:40]} 13. Nb3 {[%emt 0:13:24]} Nd7 {[%emt 0:26:14]} 14. Qe4 {[%emt 0:05:28]} Nf6 {[%emt 0:05:08]} 15. Qc2 {[%emt 0:01:20]} Nd7 {[%emt 0:01:26]} 16. Qe4 {[%emt 0:00:17]} Nf6 {[%emt 0:00:16]} 17. Qc2 1/2-1/2

[Event "45th FIDE Womens Olympiad 2024"]
[Site "Budapest"]
[Date "2024.09.14"]
[Round "4.14"]
[White "Marcos, Taqesyah"]
[Black "Recica, Jona"]
[Result "0-1"]
[ECO "A01"]
[WhiteElo "1679"]
[BlackElo "1791"]
[PlyCount "100"]
[EventDate "2024.09.05"]
[EventType "team-tourn"]
[EventCountry "HUN"]
[WhiteTeam "Netherlands Antilles"]
[BlackTeam "Kosovo"]
[WhiteTeamCountry "AHO"]
[BlackTeamCountry "KOS"]
[TimeControl "40/5400+30:1800+30"]

1. e3 e5 2. b3 d5 3. Bb2 Bd6 4. Nf3 Nc6 5. Bb5 f6 6. Bxc6+ bxc6 7. d3 Ne7 8. Nbd2 O-O 9. c4 Bb4 10. O-O Bf5 11. Ne1 Qd7 12. Ndf3 Rfd8 13. Qc1 Ng6 14. a3 Be7 15. Nd2 Kh8 16. e4 Nf4 17. Qc2 dxe4 18. Nxe4 Nxd3 19. f3 Bxe4 20. fxe4 Bc5+ 21. Kh1 Nxb2 22. Qxb2 Bd4 23. Qb1 Bxa1 24. Qxa1 Qd4 25. Qb1 Rab8 26. Nc2 Qxe4 27. Nb4 Qxb1 28. Rxb1 c5 29. Nd5 c6 30. Ne7 Rxb3 31. Rf1 Rd6 32. h3 Rxa3 33. Rb1 h5 34. Rb7 e4 35. Nf5 Re6 36. Nxg7 Ra1+ 37. Kh2 e3 38. Nxe6 e2 39. Rb8+ Kh7 40. Rb7+ Kh6 41. Nf8 e1=Q 42. Rh7+ Kg5 43. Rg7+ Kf5 44. Nd7 Qg1+ 45. Kg3 Ra3+ 46. Kh4 Qe1+ 47. g3 Qe4+ 48. g4+ hxg4 49. hxg4+ Kf4 50. Kh5 Rh3# {0-} 0-1

[Event "45th FIDE Womens Olympiad 2024"]
[Site "Budapest"]
[Date "2024.09.14"]
[Round "4.15"]
[White "Buksa, Nataliya"]
[Black "Ozturk Orenli, Kubra"]
[Result "1-0"]
[ECO "C95"]
[WhiteElo "2387"]
[BlackElo "2262"]
[Annotator "ChessBase"]
[PlyCount "61"]
[EventDate "2024.09.05"]
[EventType "team-tourn"]
[EventCountry "HUN"]
[SourceTitle "playchess.com"]
[Source "ChessBase"]
[SourceQuality "1"]
[WhiteTeam "Ukraine"]
[BlackTeam "Turkiye"]
[WhiteTeamCountry "UKR"]
[BlackTeamCountry "TUR"]
[TimeControl "40/5400+30:1800+30"]

1. e4 {[%emt 0:00:01]} e5 {[%emt 0:00:06]} 2. Nf3 {[%emt 0:00:06]} Nc6 {[%emt 0:00:06]} 3. Bb5 {[%emt 0:00:16]} a6 {[%emt 0:00:08]} 4. Ba4 {[%emt 0:00:05]} Nf6 {[%emt 0:00:14]} 5. O-O {[%emt 0:00:14]} Be7 {[%emt 0:00:30]} 6. Re1 {[%emt 0:00:13]} b5 {[%emt 0:00:30]} 7. Bb3 {[%emt 0:00:10]} d6 {[%emt 0:04:03]} 8. c3 {[%emt 0:00:19]} O-O {[%emt 0:00:17]} 9. h3 {[%emt 0:00:35]} Nb8 {[%emt 0:00:35]} 10. d4 {[%emt 0:00:32]} Nbd7 {[%emt 0:00:11]} 11. c4 {[%emt 0:00:36]} c6 {[%emt 0:01:29]} 12. Qc2 {[%emt 0:00:11]} Bb7 {[%emt 0:03:49]} 13. a3 {[%emt 0:00:18]} Qc7 {[%emt 0:27:57]} 14. cxb5 {[%emt 0:30:10]} axb5 {[%emt 0:00:35]} 15. Ba2 {[%emt 0:03:52]} c5 {[%emt 0:13:51]} 16. Bg5 {[%emt 0:11:40]} Rfc8 {[%emt 0:28:02]} 17. dxe5 {[%emt 0:13:57]} Nxe5 {[%emt 0:01:31]} 18. Nxe5 {[%emt 0:02:54]} dxe5 {[%emt 0:00:06]} 19. Bxf6 {[%emt 0:00:20]} Bxf6 {[%emt 0:00:18]} 20. Nc3 {[%emt 0:00:03]} Bc6 {[%emt 0:06:08]} 21. Bd5 {[%emt 0:01:28]} Be7 {[%emt 0:04:53]} 22. Rad1 {[%emt 0:05:39]} b4 {[%emt 0:01:45]} 23. Bxc6 {[%emt 0:00:46]} Qxc6 {[%emt 0:00:02]} 24. Nd5 {[%emt 0:00:10]} Bf8 {[%emt 0:00:11]} 25. axb4 cxb4 {[%emt 0:00:03]} 26. Qd2 {[%emt 0:07:16]} b3 {[%emt 0:05:10]} 27. Qe3 {[%emt 0:02:57]} Rab8 {[%emt 0:00:38]} 28. Rc1 {[%emt 0:00:05]} Qe6 {[%emt 0:00:43]} 29. Qg3 {[%emt 0:02:15]} g6 {[%emt 0:00:35]} 30. Rxc8 {[%emt 0:00:12]} Rxc8 {[%emt 0:00:29]} 31. Qxb3 {[%emt 0:00:06]} 1-0

[Event "45th FIDE Womens Olympiad 2024"]
[Site "Budapest"]
[Date "2024.09.14"]
[Round "4.15"]
[White "Saraci, Rinesa"]
[Black "Pourier, Dianthely"]
[Result "1-0"]
[ECO "B15"]
[WhiteElo "1757"]
[BlackElo "1548"]
[PlyCount "89"]
[EventDate "2024.09.05"]
[EventType "team-tourn"]
[EventCountry "HUN"]
[WhiteTeam "Kosovo"]
[BlackTeam "Netherlands Antilles"]
[WhiteTeamCountry "KOS"]
[BlackTeamCountry "AHO"]
[TimeControl "40/5400+30:1800+30"]

1. e4 c6 2. d4 d5 3. Nc3 dxe4 4. Nxe4 Nf6 5. Nxf6+ exf6 6. c3 Bd6 7. Bd3 O-O 8. Qc2 Re8+ 9. Ne2 g6 10. Be3 Nd7 11. O-O-O Qc7 12. h4 f5 13. h5 Nf6 14. hxg6 fxg6 15. Bg5 Ng4 16. Rdf1 Be7 17. Qb3+ Kf8 18. Bf4 Qb6 19. Rxh7 Qxb3 20. axb3 Kg8 21. Rfh1 Bf6 22. Bg3 Re7 23. Bc4+ Be6 24. Bxe6+ Rxe6 25. Nf4 Re1+ 26. Rxe1 Kxh7 27. f3 Nh6 28. Kc2 Nf7 29. Re6 Kg7 30. Nd3 Nd8 31. Rd6 Be7 32. Rd7 Kf8 33. Ne5 Ke8 34. d5 cxd5 35. Rxd5 g5 36. Nc4 f4 37. Bf2 b6 38. Re5 Nf7 39. Re6 Kd7 40. Rxb6 Bd8 41. Rb7+ Ke6 42. Rxa7 Rb8 43. Bd4 Bf6 44. Ra6+ Kf5 45. Rxf6# 1-0

[Event "45th FIDE Womens Olympiad 2024"]
[Site "Budapest"]
[Date "2024.09.14"]
[Round "4.16"]
[White "Aydin, Gulenay"]
[Black "Doluhanova, Evgeniya"]
[Result "1-0"]
[ECO "C47"]
[WhiteElo "2202"]
[BlackElo "2304"]
[Annotator "ChessBase"]
[PlyCount "111"]
[EventDate "2024.09.05"]
[EventType "team-tourn"]
[EventCountry "HUN"]
[SourceTitle "playchess.com"]
[Source "ChessBase"]
[SourceQuality "1"]
[WhiteTeam "Turkiye"]
[BlackTeam "Ukraine"]
[WhiteTeamCountry "TUR"]
[BlackTeamCountry "UKR"]
[TimeControl "40/5400+30:1800+30"]

1. e4 {[%emt 0:00:02]} e5 {[%emt 0:00:03]} 2. Nf3 {[%emt 0:00:04]} Nc6 {[%emt 0:00:04]} 3. Nc3 {[%emt 0:00:05]} Nf6 {[%emt 0:00:09]} 4. d4 {[%emt 0:00:08]} exd4 {[%emt 0:00:18]} 5. Nxd4 {[%emt 0:00:05]} Bb4 {[%emt 0:00:03]} 6. Nxc6 {[%emt 0:00:06]} bxc6 {[%emt 0:00:06]} 7. Bd3 {[%emt 0:00:04]} d5 {[%emt 0:00:06]} 8. exd5 {[%emt 0:00:05]} O-O {[%emt 0:00:08]} 9. O-O {[%emt 0:00:04]} cxd5 {[%emt 0:00:03]} 10. h3 {[%emt 0:00:08]} c6 {[%emt 0:00:03]} 11. Qf3 {[%emt 0:00:06]} Nd7 {[%emt 0:00:46]} 12. Qg3 {[%emt 0:33:12]} Re8 {[%emt 0:21:27]} 13. Bf4 {[%emt 0:05:13]} Nc5 {[%emt 0:11:45]} 14. Bg5 {[%emt 0:13:00]} f6 {[%emt 0:09:47]} 15. Bh6 {[%emt 0:03:25]} Re7 {[%emt 0:05:19]} 16. a3 {[%emt 0:01:39]} Nxd3 {[%emt 0:17:02]} 17. cxd3 {[%emt 0:01:04]} Bc5 {[%emt 0:13:28]} 18. Rac1 {[%emt 0:03:28]} Ba6 {[%emt 0:05:43]} 19. Rfd1 {[%emt 0:07:43]} Bd4 {[%emt 0:00:36]} 20. b4 {[%emt 0:08:01]} Qe8 {[%emt 0:02:32]} 21. Bd2 {[%emt 0:13:28]} Be5 {[%emt 0:08:46]} 22. Qf3 {[%emt 0:01:34]} Qf7 {[%emt 0:00:13]} 23. Ne2 {[%emt 0:03:03]} Rae8 {[%emt 0:01:27]} 24. Be3 {[%emt 0:00:54]} Bb5 {[%emt 0:01:08]} 25. Nd4 {[%emt 0:05:12]} Bxd4 {[%emt 0:01:08]} 26. Bxd4 {[%emt 0:00:01]} Ba4 {[%emt 0:00:22]} 27. Rf1 {[%emt 0:00:32]} a6 {[%emt 0:00:09]} 28. Bc5 {[%emt 0:01:21]} Re6 {[%emt 0:00:05]} 29. Bd4 {[%emt 0:00:11]} Qg6 {[%emt 0:00:20]} 30. Bc3 {[%emt 0:00:46]} Bb5 {[%emt 0:00:41]} 31. Rfd1 {[%emt 0:00:33]} h5 {[%emt 0:00:26]} 32. Kh2 {[%emt 0:00:33]} h4 {[%emt 0:00:34]} 33. Bd4 {[%emt 0:00:32]} Re2 {[%emt 0:01:18]} 34. Rc3 {[%emt 0:00:35]} Ra2 {[%emt 0:00:30]} 35. Be3 {[%emt 0:00:12]} Qf7 {[%emt 0:00:34]} 36. Kg1 {[%emt 0:00:43]} Qe7 {[%emt 0:00:42]} 37. Rdc1 {[%emt 0:00:26]} Qe5 {[%emt 0:00:23]} 38. Qg4 {[%emt 0:00:28]} g5 {[%emt 0:00:36]} 39. Bd4 {[%emt 0:00:39]} Qe6 {[%emt 0:00:09]} 40. Qh5 {[%emt 0:00:26]} Qf7 {[%emt 0:00:39]} 41. Qf3 {[%emt 0:05:49]} Re6 {[%emt 0:03:38]} 42. Qf5 {[%emt 0:04:01]} Rae2 {[%emt 0:08:51]} 43. Be3 {[%emt 0:06:27]} Kg7 {[%emt 0:05:48]} 44. Kf1 {[%emt 0:07:54]} Ra2 {[%emt 0:01:21]} 45. Bd4 {[%emt 0:00:17]} Kf8 {[%emt 0:05:21]} 46. Kg1 {[%emt 0:02:40]} Rae2 {[%emt 0:00:30]} 47. R3c2 {[%emt 0:02:54]} Rxc2 {[%emt 0:02:13]} 48. Rxc2 {[%emt 0:00:01]} Kg8 {[%emt 0:04:10]} 49. Rc1 {[%emt 0:03:12]} Ba4 {[%emt 0:01:57]} 50. Rf1 {[%emt 0:00:19]} Bc2 {[%emt 0:01:16]} 51. f4 {[%emt 0:00:40]} g4 {[%emt 0:00:06]} 52. Qxg4+ {[%emt 0:00:15]} Kh7 {[%emt 0:00:25]} 53. Qxh4+ {[%emt 0:00:48]} Kg8 {[%emt 0:00:28]} 54. f5 {[%emt 0:01:08]} Re8 {[%emt 0:00:10]} 55. Rf3 {[%emt 0:00:47]} Kf8 {[%emt 0:00:50]} 56. Bc5+ {[%emt 0:00:06]} 1-0

[Event "45th FIDE Womens Olympiad 2024"]
[Site "Budapest"]
[Date "2024.09.14"]
[Round "4.16"]
[White "Pieter, Liana"]
[Black "Saraci, Ndriqona"]
[Result "1/2-1/2"]
[ECO "D05"]
[WhiteElo "1619"]
[BlackElo "1656"]
[PlyCount "61"]
[EventDate "2024.09.05"]
[EventType "team-tourn"]
[EventCountry "HUN"]
[WhiteTeam "Netherlands Antilles"]
[BlackTeam "Kosovo"]
[WhiteTeamCountry "AHO"]
[BlackTeamCountry "KOS"]
[TimeControl "40/5400+30:1800+30"]

1. d4 Nf6 2. Nf3 e6 3. e3 d5 4. b3 c5 5. Bb2 Nc6 6. Bd3 h6 7. Nbd2 Nb4 8. Be2 Be7 9. a3 Nc6 10. c4 O-O 11. O-O a5 12. Ne5 Nxe5 13. dxe5 Ne4 14. Nxe4 dxe4 15. a4 b6 16. Qc2 Bb7 17. f3 exf3 18. Bxf3 Qc7 19. Rad1 Rad8 20. Qe2 Rxd1 21. Rxd1 Bxf3 22. Qxf3 Rd8 23. Kf2 Rxd1 24. Qxd1 Qc6 25. Qd3 Bh4+ 26. g3 Be7 27. e4 Qe8 28. h3 Qc6 29. h4 h5 30. Kf3 g5 31. hxg5 1/2-1/2

[Event "45th FIDE Womens Olympiad 2024"]
[Site "Budapest"]
[Date "2024.09.14"]
[Round "4.17"]
[White "Tokhirjonova, Gulrukhbegim"]
[Black "Roebers, Eline"]
[Result "1/2-1/2"]
[ECO "E67"]
[WhiteElo "2380"]
[BlackElo "2340"]
[Annotator "ChessBase"]
[PlyCount "78"]
[EventDate "2024.09.05"]
[EventType "team-tourn"]
[EventCountry "HUN"]
[SourceTitle "playchess.com"]
[Source "ChessBase"]
[SourceQuality "1"]
[WhiteTeam "United States of America"]
[BlackTeam "Netherlands"]
[WhiteTeamCountry "USA"]
[BlackTeamCountry "NED"]
[TimeControl "40/5400+30:1800+30"]

1. d4 {[%emt 0:00:11]} Nf6 {[%emt 0:00:03]} 2. c4 {[%emt 0:00:17]} g6 {[%emt 0:00:02]} 3. g3 {[%emt 0:00:14]} Bg7 {[%emt 0:00:07]} 4. Bg2 {[%emt 0:00:14]} O-O {[%emt 0:00:09]} 5. Nf3 {[%emt 0:00:19]} d6 {[%emt 0:00:05]} 6. O-O {[%emt 0:00:25]} Nbd7 {[%emt 0:00:06]} 7. Nc3 {[%emt 0:00:32]} e5 {[%emt 0:00:04]} 8. e4 {[%emt 0:00:22]} Re8 {[%emt 0:00:02]} 9. h3 {[%emt 0:03:59]} b6 {[%emt 0:00:04]} 10. d5 {[%emt 0:07:56]} Nc5 {[%emt 0:00:53]} 11. Ne1 {[%emt 0:02:17]} a5 {[%emt 0:01:03]} 12. b3 {[%emt 0:02:46]} Rf8 {[%emt 0:01:18]} 13. Be3 {[%emt 0:05:04]} Nfd7 {[%emt 0:01:46]} 14. a3 {[%emt 0:06:04]} f5 {[%emt 0:10:12]} 15. b4 {[%emt 0:06:14]} f4 {[%emt 0:15:00]} 16. Bxc5 {[%emt 0:23:05]} bxc5 {[%emt 0:02:43]} 17. bxc5 {[%emt 0:03:14]} fxg3 {[%emt 0:15:12]} 18. fxg3 {[%emt 0:01:49]} Rxf1+ {[%emt 0:00:14]} 19. Bxf1 {[%emt 0:00:09]} Nxc5 {[%emt 0:00:03]} 20. Ra2 {[%emt 0:04:34]} Qg5 {[%emt 0:08:03]} 21. Kh2 {[%emt 0:00:18]} Rb8 {[%emt 0:01:49]} 22. Nd3 {[%emt 0:12:28]} Nxd3 {[%emt 0:06:08]} 23. Bxd3 {[%emt 0:00:21]} Bd7 {[%emt 0:00:53]} 24. Nb5 {[%emt 0:00:57]} Qe3 {[%emt 0:02:18]} 25. Qd2 {[%emt 0:02:52]} Qxd2+ {[%emt 0:00:25]} 26. Rxd2 {[%emt 0:00:02]} Bxb5 {[%emt 0:00:20]} 27. cxb5 {[%emt 0:00:11]} Bh6 {[%emt 0:00:19]} 28. Rc2 {[%emt 0:00:32]} Rb7 {[%emt 0:00:04]} 29. Kg2 {[%emt 0:06:46]} Be3 {[%emt 0:00:13]} 30. a4 {[%emt 0:00:51]} Bc5 {[%emt 0:00:16]} 31. Rc1 {[%emt 0:00:08]} Rb8 {[%emt 0:00:00]} 32. Rf1 {[%emt 0:00:00]} Rf8 {[%emt 0:00:00]} 33. Rxf8+ {[%emt 0:00:09]} Kxf8 {[%emt 0:00:00]} 34. Kf3 {[%emt 0:00:12]} Ke7 {[%emt 0:00:00]} 35. Be2 {[%emt 0:00:10]} Kf6 {[%emt 0:00:00]} 36. Bd3 {[%emt 0:00:36]} Bb6 {[%emt 0:00:00]} 37. Be2 {[%emt 0:00:03]} Bc5 {[%emt 0:00:00]} 38. Bd3 {[%emt 0:00:05]} Bb6 {[%emt 0:00:00]} 39. Be2 {[%emt 0:00:08]} Bc5 {[%emt 0:00:03]} 1/2-1/2

[Event "45th FIDE Womens Olympiad 2024"]
[Site "Budapest"]
[Date "2024.09.14"]
[Round "4.17"]
[White "Callender, Jessica"]
[Black "Strade, Arita"]
[Result "0-1"]
[ECO "A05"]
[WhiteElo "1579"]
[BlackElo "1946"]
[PlyCount "54"]
[EventDate "2024.09.05"]
[EventType "team-tourn"]
[EventCountry "HUN"]
[WhiteTeam "Guyana"]
[BlackTeam "Guernsey"]
[WhiteTeamCountry "GUY"]
[BlackTeamCountry "GCI"]
[TimeControl "40/5400+30:1800+30"]

1. Nf3 Nf6 2. g3 b5 3. Bg2 Bb7 4. O-O g6 5. d3 Bg7 6. e4 d6 7. Be3 O-O 8. Nbd2 Nbd7 9. h3 c5 10. Nh2 d5 11. Nb3 Qc7 12. Bf4 e5 13. Bg5 dxe4 14. dxe4 Bxe4 15. Qe2 Bxg2 16. Kxg2 Qc6+ 17. Kg1 e4 18. Rfe1 Rfe8 19. Rad1 a5 20. Ng4 Nxg4 21. Qxg4 Ne5 22. Qf4 Nf3+ 23. Kf1 Nxe1 24. Rxe1 e3 25. Kg1 f6 26. Bh6 g5 27. Bxg5 fxg5 {0-} 0-1

[Event "45th FIDE Womens Olympiad 2024"]
[Site "Budapest"]
[Date "2024.09.14"]
[Round "4.18"]
[White "Van Foreest, Machteld"]
[Black "Yip, Carissa"]
[Result "0-1"]
[ECO "C54"]
[WhiteElo "2224"]
[BlackElo "2386"]
[PlyCount "92"]
[EventDate "2024.09.05"]
[EventType "team-tourn"]
[EventCountry "HUN"]
[WhiteTeam "Netherlands"]
[BlackTeam "United States of America"]
[WhiteTeamCountry "NED"]
[BlackTeamCountry "USA"]
[TimeControl "40/5400+30:1800+30"]

1. e4 {[%emt 0:00:03]} e5 {[%emt 0:00:47]} 2. Nf3 {[%emt 0:00:05]} Nc6 {[%emt 0:00:03]} 3. Bc4 {[%emt 0:00:06]} Bc5 {[%emt 0:00:07]} 4. c3 {[%emt 0:00:04]} Nf6 {[%emt 0:00:03]} 5. d3 {[%emt 0:00:06]} d6 {[%emt 0:00:27]} 6. Nbd2 {[%emt 0:02:04]} a6 {[%emt 0:00:52]} 7. Bb3 {[%emt 0:00:14]} Ba7 {[%emt 0:01:32]} 8. h3 {[%emt 0:00:17]} Qe7 {[%emt 0:00:16]} 9. Nf1 {[%emt 0:08:10]} Bd7 {[%emt 0:00:37]} 10. Be3 {[%emt 0:02:09]} O-O-O {[%emt 0:00:40]} 11. Bxa7 {[%emt 0:13:02]} Nxa7 {[%emt 0:00:07]} 12. Ne3 {[%emt 0:00:04]} Kb8 {[%emt 0:00:03]} 13. c4 {[%emt 0:09:31]} c6 {[%emt 0:16:16]} 14. Qd2 {[%emt 0:03:11]} Be6 {[%emt 0:04:08]} 15. Qc3 {[%emt 0:04:42]} g6 {[%emt 0:08:34]} 16. Bc2 {[%emt 0:12:28]} Bc8 {[%emt 0:07:05]} 17. b4 {[%emt 0:03:53]} Rhe8 {[%emt 0:03:31]} 18. Bb3 {[%emt 0:07:07]} g5 {[%emt 0:09:50]} 19. Nxg5 {[%emt 0:08:02]} d5 {[%emt 0:00:42]} 20. cxd5 {[%emt 0:02:46]} Nxd5 {[%emt 0:00:16]} 21. exd5 {[%emt 0:01:02]} Qxg5 {[%emt 0:00:08]} 22. Rc1 {[%emt 0:05:08]} f5 {[%emt 0:05:31]} 23. dxc6 {[%emt 0:04:11]} Nxc6 {[%emt 0:06:03]} 24. Bd5 {[%emt 0:02:42]} Rxd5 {[%emt 0:03:15]} 25. Nxd5 {[%emt 0:00:44]} Qxg2 {[%emt 0:00:04]} 26. Qc5 {[%emt 0:00:38]} Rd8 {[%emt 0:01:22]} 27. Ne7 {[%emt 0:03:49]} Qxh1+ {[%emt 0:03:41]} 28. Ke2 {[%emt 0:00:05]} Qg2 {[%emt 0:00:32]} 29. Rg1 {[%emt 0:00:32]} Qxg1 {[%emt 0:01:53]} 30. Nxc6+ {[%emt 0:00:03]} bxc6 {[%emt 0:00:03]} 31. Qb6+ {[%emt 0:00:02]} Bb7 {[%emt 0:00:05]} 32. Qxd8+ {[%emt 0:00:12]} Ka7 {[%emt 0:00:05]} 33. Qe7 {[%emt 0:00:48]} Qg8 {[%emt 0:00:09]} 34. Qc5+ {[%emt 0:01:04]} Ka8 {[%emt 0:00:07]} 35. Qxe5 {[%emt 0:00:19]} Qxa2+ {[%emt 0:00:04]} 36. Ke3 {[%emt 0:00:03]} Qf7 {[%emt 0:00:38]} 37. Qh8+ {[%emt 0:01:10]} Ka7 {[%emt 0:00:03]} 38. Qd4+ {[%emt 0:01:26]} Kb8 {[%emt 0:00:03]} 39. Qe5+ {[%emt 0:00:06]} Kc8 {[%emt 0:00:31]} 40. Kf4 {[%emt 0:00:03]} Qc7 {[%emt 0:00:13]} 41. Kxf5 {[%emt 0:30:49]} Qxe5+ {[%emt 0:30:04]} 42. Kxe5 {[%emt 0:00:02]} Kd7 {[%emt 0:00:08]} 43. f4 {[%emt 0:00:10]} Ke7 {[%emt 0:00:18]} 44. h4 {[%emt 0:00:41]} Bc8 {[%emt 0:00:24]} 45. d4 {[%emt 0:01:24]} Be6 {[%emt 0:00:16]} 46. h5 {[%emt 0:01:27]} h6 {[%emt 0:00:45]} 0-1

[Event "45th FIDE Womens Olympiad 2024"]
[Site "Budapest"]
[Date "2024.09.14"]
[Round "4.18"]
[White "Nevska, Gerda"]
[Black "Shariff, Sasha Christina"]
[Result "1-0"]
[ECO "A22"]
[WhiteElo "1892"]
[BlackElo "1538"]
[PlyCount "47"]
[EventDate "2024.09.05"]
[EventType "team-tourn"]
[EventCountry "HUN"]
[WhiteTeam "Guernsey"]
[BlackTeam "Guyana"]
[WhiteTeamCountry "GCI"]
[BlackTeamCountry "GUY"]
[TimeControl "40/5400+30:1800+30"]

1. c4 e5 2. Nc3 Nf6 3. e4 Bb4 4. d3 O-O 5. f4 Bxc3+ 6. bxc3 exf4 7. Bxf4 d6 8. Nf3 Nc6 9. Be2 Bg4 10. Bg5 Bxf3 11. Bxf3 Ne5 12. O-O Qe7 13. Rb1 Rab8 14. Be2 Ned7 15. Bg4 Qe5 16. Rf5 Qxc3 17. Bh3 Rfe8 18. Qe2 Re5 19. Rbf1 Rxf5 20. Rxf5 Re8 21. Rf1 Re5 22. Bc1 Nc5 23. Rd1 d5 24. Bb2 1-0